Cogmind - Beta 14 @@@ ROGUE MODE // 2024.08.07 @ 09:35:59 Player: drater Result: Destroyed self with Grenade Launcher Performance ------------- Evolutions (0) 0 Regions Visited (1) 200 Robots Destroyed (28) 140 Value Destroyed (299) 299 Prototype IDs (0) 0 Alien Tech Used (0) 0 Bonus (0) 0 TOTAL SCORE: 639 Bonus ------- None Cogmind --------- Core Integrity 0/250 Matter 105/300 Energy 124/125 System Corruption 0% Temperature Cool (0) Movement Rolling (110) Ox2 Location -10/Materials Parts ------- > --- POWER (1) -------- Light Ion Engine > --- PROPULSION (2) --- Wheel > --- UTILITY (2) ------ Large Storage Unit Improved Light Armor Plating > --- WEAPON (2) ------- Light Assault Rifle Grenade Launcher > --- INVENTORY (15) --- Light Ion Engine Light Ion Engine Light Treads Light Treads Flight Unit Large Storage Unit Small Matter Pod (50) Assault Rifle Light Assault Rifle Peak State ------------ > --- POWER ------------ Light Deuterium Engine > --- PROPULSION ------- Wheel Wheel > --- UTILITY ---------- Small Storage Unit Improved Light Armor Plating > --- WEAPON ----------- Assault Rifle Light Assault Rifle > --- INVENTORY -------- Light Ion Engine Light Ion Engine Light Ion Engine Light Treads Light Treads Small Matter Pod Improved Terrain Scanner Seismic Detector [Rating: 12] Favorites ----------- Power Light Ion Engine Engine Light Ion Engine Propulsion Compact Wheel Treads Light Treads Wheel Compact Wheel Utility Small Storage Unit Device Seismic Detector Storage Small Storage Unit Protection Improved Light Armor Plating Weapon Mining Laser Ballistic Gun Light Assault Rifle Launcher Grenade Launcher Special Weapon Mining Laser Build | -11 -10 ------- Run | Yrd Mat Slots Evolved . | . . Power . | . . Propulsion . | . . Utility . | . . Weapon . | . . Parts Attached 20 | 17 3 Power 3 | 2 1 Engine 3 | 2 1 Core . | . . Reactor . | . . Propulsion 7 | 7 . Treads 1 | 1 . Leg . | . . Wheel 6 | 6 . Hover . | . . Flight . | . . Utility 4 | 3 1 Device 1 | 1 . Storage 2 | 1 1 Processor . | . . Hackware . | . . Protection 1 | 1 . Artifact . | . . Weapon 6 | 5 1 Energy Gun . | . . Energy Cannon . | . . Ballistic Gun 4 | 4 . Ballistic Cannon . | . . Launcher 1 | . 1 Special Weapon 1 | 1 . Impact Weapon . | . . Slashing Weapon . | . . Piercing Weapon . | . . Special Melee Weapon . | . . Unidentified Prototypes . | . . Parts Lost 3 | 2 1 Power . | . . Propulsion 2 | 1 1 Utility . | . . Weapon 1 | 1 . Highest Loss Streak 2 | 2 1 To Critical Strikes . | . . Average Slot Usage (%) 90 | . 90 Engine 14 | . 14 Wheel 18 | . 18 Storage 14 | . 14 Protection 14 | . 14 Ballistic Gun 15 | . 15 Launcher 12 | . 12 Peak Build Rating 12 | 12 12 Average Rating 7 | 7 9 On Entrance 6 | . 12 Naked Turns . | . . Heaviest Build 32 | 16 32 Greatest Support 32 | 32 20 Greatest Overweight (x) 3 | 3 3 Average Overweight (x) . | . 1 Largest Inventory Capacity 15 | 8 15 Average Capacity 8 | 7 13 Most Carried 9 | 8 9 Average Carried 7 | 7 7 Final Capacity 15 | 8 15 Final Carried 9 | 8 9 Class Distribution -------------------- 92% | Scavenger-Mutant 7% | Mutant Dominant Class ---------------- Mutant | -10/Materials Resources | -11 -10 ----------- Run | Yrd Mat Matter Collected 596 | 526 70 Remotely . | . . Salvage Created 486 | 210 276 Parts 46 | 18 28 Haulers Intercepted 1 | . 1 Recyclers Shooed . | . . Parts Field Recycled . | . . Retrieved Matter . | . . Parts Self-Destructed . | . . Prevented . | . . Kills | -11 -10 ------- Run | Yrd Mat Combat Hostiles Destroyed 17 | 5 12 Guns 5 | 4 1 Cannons 1 | 1 . AOE 11 | . 11 Classes Destroyed 8 | 4 4 Worker 4 | 4 . Builder 4 | . 4 Tunneler 5 | 5 . Hauler 1 | . 1 Recycler 2 | 1 1 Swarmer 8 | . 8 Grunt 4 | . 4 Assembled 5 | 5 . Best Kill Streak 11 | 5 11 Combat Bots Only 7 | 5 7 Max Kills in Single Turn 2 | 1 2 Gunslinging . | . . Exploded 2 | . 2 Melee . | . . Uniques/NPCs Destroyed . | . . Combat | -11 -10 -------- Run | Yrd Mat Hostile Shots Fired 86 | 31 55 Missed 22 | 6 16 Damage Taken 776 | 365 411 Core 250 | 120 130 Absorbed by Shields . | . . Core Remaining (%) 52 | 52 . Volleys Fired 149 | 104 45 Largest 2 | 2 2 Hottest 120 | 120 50 Shots Fired 186 | 125 61 Gun 140 | 95 45 Cannon . | . . Launcher 16 | . 16 Special 30 | 30 . Kinetic 140 | 95 45 Thermal 30 | 30 . Explosive 16 | . 16 Electromagnetic . | . . Robot Hit Streak 11 | 11 7 Robot Miss Streak 7 | 6 7 Penetration Max . | . . Secondary Targets . | . . Shots Hit Robots 87 | 64 23 Core Hits 56 | 25 31 Critical Kills . | . . Critical Parts Destroyed 1 | 1 . Critical Strikes 1 | 1 . Destroy 1 | 1 . Melee Attacks . | . . Impact . | . . Slashing . | . . Piercing . | . . Sneak Attacks . | . . Combat Hostiles . | . . Follow-up Attacks . | . . Damage Inflicted 1772 | 808 964 Guns 687 | 544 143 Cannons . | . . Explosions 821 | . 821 Melee . | . . Ramming . | . . Kinetic 687 | 544 143 Thermal 264 | 264 . Explosive 821 | . 821 Electromagnetic . | . . Impact . | . . Slashing . | . . Piercing . | . . Highest Corruption . | . . Average Corruption . | . . Corruption Purged . | . . Corruption Blocked . | . . Overload Shots . | . . Overflow Damage 27 | 18 9 Projectiles 18 | 18 . Explosions 9 | . 9 Melee . | . . Knockbacks . | . . Impact . | . . Kinetic . | . . Secondary . | . . Self-Inflicted Damage 65 | . 65 Shots 3 | . 3 Rammed . | . . Targets Rammed . | . . Kicked . | . . Crushed . | . . Highest Temperature 80 | 80 54 Average Temperature 21 | 24 13 Received Heat Transfer 174 | 120 54 Siege Activations . | . . Robots Corrupted . | . . Combat Hostiles . | . . Parts Fried . | . . Impact Corruptions . | . . Robots Melted . | . . Combat Hostiles . | . . Parts Melted . | . . Heat Transferred 550 | 550 . Parts Sabotaged . | . . Parts Stolen . | . . Parts Stripped . | . . Power Chain Reactions . | . . Alert | -11 -10 ------- Run | Yrd Mat Peak Influence 382 | 35 382 Initial . | . . Average 29 | 5 222 Maximum Alert Level 1 | . 1 Low Security (%) 92 | 100 38 Level 1 7 | . 61 Level 2 . | . . Level 3 . | . . Level 4 . | . . Level 5 . | . . High Security . | . . Max Security . | . . Squads Dispatched 1 | . 1 Investigation . | . . Extermination . | . . Reinforcement 1 | . 1 Assault . | . . Garrison . | . . Intercept . | . . Searches Triggered . | . . Construction Impeded . | . . Haulers Reinforced . | . . Active Scanning Responses . | . . Cargo Convoy Interrupts . | . . Stealth | -11 -10 --------- Run | Yrd Mat Distress Signals 1 | . 1 Communications Jammed . | . . Distress Signals . | . . Times Spotted 26 | 7 19 Peak Tracking Total 5 | 3 5 Tactical Retreats . | . . Traps | -11 -10 ------- Run | Yrd Mat Traps Triggered . | . . Indirectly . | . . Trap Hack Attempts . | . . Triggered . | . . Disarmed . | . . Reprogrammed . | . . Reused . | . . Traps Extracted . | . . Installed . | . . Triggered . | . . Machines | -11 -10 ---------- Run | Yrd Mat Machines Disabled 1 | . 1 Max in Single Turn 1 | . 1 Machines Repaired . | . . Machines Dismantled . | . . Machines Sabotaged . | . . Overloaded Fab Kills . | . . Hacking | -11 -10 --------- Run | Yrd Mat Machines Accessed . | . . Terminals . | . . Fabricators . | . . Repair Stations . | . . Recycling Units . | . . Scanalyzers . | . . Garrison Access . | . . Total Hacks . | . . Successful . | . . Failed . | . . Catastrophic . | . . Database Lockouts . | . . Manual . | . . Terminals . | . . Fabricators . | . . Repair Stations . | . . Recycling Units . | . . Scanalyzers . | . . Garrison Access . | . . Terminal Hacks . | . . Fabricator Hacks . | . . Repair Station Hacks . | . . Recycling Unit Hacks . | . . Scanalyzer . | . . Garrison Access Hacks . | . . Unauthorized Hacks . | . . Terminals . | . . Fabricators . | . . Repair Stations . | . . Recycling Units . | . . Scanalyzers . | . . Garrison Access . | . . Data Cores Recovered . | . . Used . | . . Hacking Detections . | . . Full Trace Events . | . . Feedback Events . | . . Feedback Blocked . | . . Robot Schematics Acquired . | . . Robots Built . | . . Authchips . | . . Time . | . . Total Robot Build Rating . | . . Part Schematics Acquired . | . . Parts Built . | . . Authchips . | . . Time . | . . Total Part Build Rating . | . . Parts Repaired . | . . Time . | . . Parts Recycled . | . . Recycled Matter . | . . Retrieved Matter . | . . Retrieved Components . | . . Parts Scanalyzed . | . . Part Schematics Acquired . | . . Parts Damaged . | . . Bothacking | -11 -10 ------------ Run | Yrd Mat Used RIF Installer . | . . Robots Hacked . | . . Non-combat . | . . Combat . | . . Robot Hacks Applied . | . . Relay Couplers Released . | . . Fabnet Peak Effective % . | . . Robots Rewired . | . . Allies Hacked . | . . Hacks Repelled . | . . Allies | -11 -10 -------- Run | Yrd Mat Total Allies . | . . Largest Group . | . . Highest-Rated Group . | . . Highest-Rated Ally . | . . Total Orders . | . . Ally Attacks . | . . Total Damage . | . . Kills . | . . Allies Corrupted . | . . Allies Melted . | . . Intel | -11 -10 ------- Run | Yrd Mat Robot Analysis Total . | . . Derelict Logs Recovered . | . . Drone Launches . | . . Drone Recoveries . | . . Exploration | -11 -10 ------------- Run | Yrd Mat Turns Passed 2034 | 1801 233 Spaces Moved 879 | 750 129 Core 72 | 72 . Treads 101 | 101 . Legs . | . . Wheels 706 | 577 129 Hover . | . . Flight . | . . Fastest Speed 50 | 50 80 Average Speed 103 | 104 98 Slowest Speed 200 | 200 125 Overloaded Moves . | . . Propulsion Burnouts . | . . Robots Hopped . | . . Cave-ins Triggered . | . . Exploration Rate (%) 29 | 39 20 Regions Visited 1 Branch Regions . Pre-discovered Areas . | . . Known Exits Taken . | . . Unknown Exits Taken 1 | 1 . Scrap Searched . | . . Spaces Dug 12 | 12 . Terrain Destroyed 101 | 14 87 Melee . | . . Projectile 14 | 14 . AOE 87 | . 87 Terrain Rammed . | . . Walls Destroyed . | . . Machines Disabled . | . . Actions | -11 -10 --------- Run | Yrd Mat Total 1785 | 1598 187 Wait 708 | 708 . Move 878 | 749 129 Hop . | . . Pick Up 17 | 13 4 Fast Attach 6 | 6 . Attach 9 | 7 2 Detach 5 | 3 2 Swap 5 | 4 1 Drop 8 | 4 4 Fire 149 | 104 45 Melee . | . . Ram . | . . Kick . | . . Crush . | . . Escape Stasis . | . . Rewire . | . . Trap . | . . Miscellaneous . | . . Route ------- -11/Scrapyard -10/Materials History --------- Turn | Location | Event 17 | -11/Scrapyard | Discovered new exit (range 15) 1609 | -11/Scrapyard | Assembled infested the area 1802 | -11/Scrapyard | Entered Materials 1848 | -10/Materials | Build established: Scavenger-Mutant 1858 | -10/Materials | Core integrity fell below 50% 1899 | -10/Materials | Core integrity fell below 20% 1924 | -10/Materials | Destroyed 7 combat bots 2035 | -10/Materials | Destroyed self with Grenade Launcher Last Messages --------------- 01986_ K-01 Serf collects debris. 01987_ Acquired Lgt. Assault Rifle. 01987_ R-06 Scavenger collects Ion Engine. 01988_ K-01 Serf collects debris. 01993_ R-06 Scavenger collects Lgt. Ion Engine. 01998_ K-01 Serf collects debris. 01998_ R-06 Scavenger collects Sml. Storage Unit. 02001_ K-01 Serf collects debris. 02008_ U-05 Engineer lays Concrete. 02012_ U-05 Engineer builds a Wall. 02015_ A-02 Transporter destroyed. 02016_ U-05 Engineer lays Concrete. 02016_ O-16 Technician sends out distress signal. 02018_ U-05 Engineer lays Concrete. 02019_ O-16 Technician destroyed. 02022_ K-01 Serf collects debris. 02027_ S-10 Pest destroyed. 02035_ Destroyed Hover Unit. Map ----- +----------------------------------------------------+ | ?????????????????????????????????????? | | ?????????????????????????????????????? | | ?????????????????????????????????????? | | ?????????????????????????????????????? | | ?????????????????????????????????????? | | ?????????????????????????????????????? | | ?????????????????????????????????????? | | ?????????????????????????????????????? | | ????????????? ?????????????????????? | | ???????????? ??????? ????????????? | | ???????????? #??????? ????????????? | | ????????????# #??????? ????????????? | | ????????????# #??????# #???????????? | | ????????????# #??????# #???????????? | | ????????????# #??????# #???????????? | | ????????????# #??????# #???????????? | | #####???????# #??????# #???????????? | | #???????# #??????# #???????????? | | #???##### #??????# #???????????? | | ##### #??????# #???????????? | | # ### # #???#### ##??????????? | | ! ## ## # ##### k #??????????? | | ] # # ### % #??????????? | | * * ! #??????????? | | = ##### r #??????????? | | # # # ##### @#??????????? | | +####### ########???# #??????????? | | # ##?#???? w #??????????? | | ###????# ???????????? | | #?????# " " ] ???????????? | | ## #?????# "Y" ]] ##??????????? | | #### ##?????# """ % ???????????? | | ???# #????????? ]/ ???????????? | | ???# #????????### #???????????? | | ???# #??????????# ???????????? | | ???# #?????????? s #???????????? | | ???# #######??? ^ ???????????? | | ???# # #??! ???????????? | | ???# # """ #???? ???????????? | | ???# # """ #???????##+##???????????? | | ???# # """ #???????????????????????? | | ???# # """ #???????????????????????? | | ???# # ! #???????????????????????? | | ???# + ""! #???????????????????????? | | ???# # "" #???????????????????????? | | ???# # "T #???????????????????????? | | ???# # "" #???????????????????????? | | ???##### "" #???????????????????????? | | ???????# #???????????????????????? | | ???????#######???????????????????????? | +----------------------------------------------------+ Best States ------------- Heat Dissipation 25 Energy Generation 14 Energy Capacity 140 Matter Stores 300 Matter Capacity 300 Sight Range 16 Terrain Scan Density 10 Armor Coverage 150 Evasion (%) 50 Recoil Reduction 1 Item Schematics ----------------- None Robot Schematics ------------------ None Fabricated ------------ Nothing Alien Tech Used ----------------- None Achievements -------------- Curiosity Killed The Cat Challenges ------------ None Game ------ Seed IonicGravmagReplica Manual? 0 Play Time 00:36:34 Cumulative 29.9 hours Start 2024.08.07 @ 08:45:29 End 2024.08.07 @ 09:35:59 Sessions 1 Manual Loads 0 Difficulty Rogue Special Mode None Game No. 22 Rogue 22 Adventurer 0 Explorer 0 Win Type - Total 0 Types 0/0/0/0/0/0/0/0/0 Lore% 14 Gallery% 22 Achievement% 25 Wizard Run 0 Options --------- Layout 1 ASCII 0 Keyboard 1 Movement Vi Keybinds 0 Fullscreen 1 Font 24/Smallcaps Map View 50x35 Zoom Use 0% Tactical HUD 1 Map Filters NONE Filters NONE Steam 1 RUN: e5fefb66-4748-4f1d-89aa-3a8c29c65c3b